bitfinex/quotes_ETHUSD_20260129
["timestamp","ask_amount","ask_price","bid_price","bid_amount"]
[1769698319527,8.1168067,2905.5,2904.3,0.002]
[1769698319741,8.1168067,2905.5,2903.5,7.85594253]
[1769698319742,7.2553546,2905.3,2903.6,0.86097311]
[1769698319917,7.2553546,2905.1,2903.7,0.86095595]
[1769698320105,7.2553546,2905.1,2903.5,11.30004034]
[1769698320106,7.2553546,2904.9,2903.6,3.44397787]
[1769698320428,7.2553546,2904.9,2903.5,0.86101112]
[1769698320608,8.06694858,2904.8,2903.5,1.2915268]
[1769698321419,8.06694858,2904.8,2903.5,0.86101112]
[1769698321615,8.06694858,2904.8,2903.1,0.002]
[1769698322033,7.2553546,2904.6,2903.1,0.002]
[1769698322235,8.11611758,2904.4,2903.1,0.002]
[1769698323241,8.11611758,2904.4,2902.3,0.86136947]
[1769698323446,7.2553546,2904.2,2902.4,0.86135338]
[1769698323646,7.2553546,2904.2,2902.3,0.8613655]
[1769698323821,7.2553546,2904.0,2902.1,0.002]
[1769698324238,7.2553546,2903.8,2902.1,0.002]
[1769698324437,7.2553546,2903.6,2902.1,0.002]
[1769698324649,7.2553546,2903.4,2902.1,0.002]
[1769698324851,7.2553546,2902.3,2900.9,0.56156796]
[1769698325020,0.1024,2902.4,2899.7,7.85594253]
[1769698325021,0.1024,2901.8,2899.7,7.85594253]
[1769698325226,7.99113006,2901.8,2899.7,7.85594253]
[1769698325469,7.99113006,2901.8,2900.1,0.86202966]
[1769698325649,7.99113006,2901.8,2899.7,7.85594253]
[1769698325853,7.99113006,2901.8,2900.0,3.99728681]
[1769698326160,7.99113006,2901.8,2900.0,0.5490129]
[1769698326325,7.99113006,2901.8,2898.7,0.003]
[1769698326326,7.2553546,2900.7,2898.7,0.003]
[1769698326531,7.2553546,2900.7,2898.7,7.85894253]
[1769698326730,7.2553546,2900.7,2899.4,0.8622183]
[1769698326965,7.2553546,2900.5,2898.7,0.003]
[1769698327350,7.2553546,2900.1,2898.7,0.003]
[1769698327528,0.79763546,2900.6,2898.7,0.003]
[1769698327529,8.41785423,2900.6,2898.7,0.003]
[1769698327729,0.86162329,2901.5,2900.0,0.86206896]
[1769698327962,0.86162329,2901.5,2900.9,1.41733305]
[1769698328272,0.86162329,2901.5,2900.1,0.002]
[1769698328273,0.79911301,2901.7,2900.2,0.86200951]
[1769698328590,8.11678869,2902.2,2900.2,0.86200951]
[1769698329262,1.20419691,2902.5,2900.6,7.85594253]
[1769698329460,1.20418395,2902.5,2900.7,0.78559425]
[1769698330261,8.45953855,2902.5,2900.2,0.86200951]
[1769698330449,7.2553546,2902.3,2900.2,0.86200951]
[1769698330769,7.73025792,2902.3,2900.2,0.86200951]
[1769698330972,7.2553546,2902.3,2900.2,0.86200951]
[1769698331467,7.2553546,2902.1,2900.2,0.86200951]
[1769698331691,7.2553546,2901.9,2900.1,0.002]
[1769698331846,7.28286113,2901.9,2900.1,0.002]
[1769698332052,0.722,2901.8,2900.1,0.86403918]
[1769698332233,0.8615936,2901.6,2900.1,0.002]
[1769698332565,0.8615936,2901.6,2899.0,0.002]
[1769698332566,7.3577546,2901.2,2899.0,0.002]
[1769698332767,7.83265792,2901.2,2899.1,0.86232448]
[1769698333134,7.3577546,2901.0,2899.1,0.86232448]
[1769698333569,7.2553546,2900.9,2899.1,0.86232448]
[1769698334362,8.11718581,2900.8,2899.0,0.002]
[1769698334675,7.3577546,2900.4,2899.0,0.002]
[1769698334913,7.3577546,2900.4,2898.7,0.003]
[1769698334914,7.28286113,2900.0,2898.7,0.003]
[1769698335043,7.28286113,2900.0,2898.7,0.86545294]
[1769698335245,7.28286113,2899.7,2897.6,0.00192823]
[1769698335542,7.28286113,2899.7,2897.6,0.86470536]
[1769698335543,0.02750653,2898.6,2897.6,0.86470536]
[1769698335747,0.02750653,2898.6,2897.6,0.86469432]
[1769698335997,0.02750653,2899.0,2897.7,0.86275105]
[1769698336289,7.28286113,2899.2,2897.6,3.45305011]
[1769698336290,0.86233658,2899.1,2897.6,0.00192823]
[1769698336496,0.43391895,2899.0,2897.6,0.00192823]
[1769698337350,0.86221762,2899.5,2897.6,7.85787076]
[1769698337554,0.86221762,2899.5,2897.6,0.00192823]
[1769698337555,8.11757222,2899.5,2897.6,0.00192823]
[1769698337755,8.14507875,2899.5,2897.6,0.00192823]
[1769698337942,1.15938374,2899.4,2897.6,7.85787076]
[1769698338144,0.88972415,2899.5,2897.6,7.85787076]
[1769698338465,7.2553546,2899.4,2897.6,0.00192823]
[1769698338868,0.88972415,2899.5,2897.6,7.85787076]
[1769698339080,0.02750653,2899.8,2897.6,7.85787076]
[1769698339253,4.1465016,2901.5,2897.6,7.85787076]
[1769698339254,7.2553546,2901.0,2898.4,0.02750653]
[1769698339581,0.86165299,2901.4,2898.9,7.85594253]
[1769698339744,0.02750653,2901.1,2898.9,7.85594253]
[1769698340076,0.02750653,2900.7,2898.4,7.85594253]
[1769698340277,7.28286113,2900.7,2898.4,7.85594253]
[1769698340444,0.86195007,2900.4,2898.5,0.86251509]
[1769698340649,0.43372569,2900.3,2898.6,0.39594852]
[1769698340955,0.43372569,2900.3,2898.5,8.71845762]
[1769698341176,7.28286113,2901.2,2898.6,7.88344906]
[1769698341379,0.86174209,2901.1,2898.8,7.88344906]
[1769698341584,8.11709669,2901.1,2898.8,7.88344906]
[1769698341784,8.11709669,2901.1,2898.8,7.85594253]
[1769698341970,8.11709669,2901.1,2898.5,0.86251509]
[1769698342170,8.41451176,2901.0,2898.6,8.28720008]
[1769698342371,8.41451176,2901.0,2898.8,7.85594253]
[1769698342790,8.1171561,2900.9,2898.9,0.86239608]
[1769698343473,1.15915716,2901.0,2899.1,7.88344906]
[1769698343673,0.86177294,2901.0,2899.1,7.85594253]
[1769698344075,0.86165299,2901.4,2899.2,0.02750653]
[1769698344370,8.11700759,2901.4,2899.2,7.85594253]
[1769698344675,0.86171239,2901.2,2899.1,0.02750653]
[1769698344934,1.15639166,2901.1,2899.3,7.85594253]
[1769698345228,0.8626038,2901.6,2899.6,0.02750653]
[1769698345517,0.8626038,2901.6,2899.3,7.85594253]
[1769698345872,7.61798586,2901.1,2899.1,0.75047805]
[1769698346103,7.61798586,2901.1,2899.0,0.02750653]
[1769698346326,7.61798586,2901.1,2898.9,8.45552422]
[1769698346984,0.8617718,2901.0,2898.9,8.45552422]
[1769698347181,0.8617718,2901.0,2899.2,0.02750653]
[1769698347381,0.86162329,2901.5,2899.4,7.62063467]
[1769698347607,1.20910992,2901.5,2899.5,0.83426347]
[1769698348280,1.20910992,2901.5,2899.6,7.59312814]
[1769698349034,1.20910992,2901.5,2899.7,8.45528629]
[1769698349488,1.20910992,2901.5,2899.8,8.34263467]
[1769698350513,1.20910992,2901.5,2899.8,7.59312814]
[1769698350826,1.20910992,2901.5,2899.6,0.86217302]
[1769698351011,0.46566031,2901.4,2899.7,0.43110132]
[1769698352024,7.61798586,2900.6,2898.1,7.59312814]
[1769698352198,7.61798586,2900.6,2898.7,0.8624334]
[1769698352398,7.61798586,2900.6,2897.9,0.02750653]
[1769698352602,7.61798586,2900.6,2898.2,3.45041656]
[1769698352802,7.95795011,2900.4,2898.1,3.45050033]
[1769698353011,7.95795011,2900.2,2898.2,0.50351345]
[1769698353215,7.95795011,2900.0,2898.2,0.50351345]
[1769698353421,7.95795011,2899.8,2897.8,0.002]
[1769698353592,7.95795011,2899.6,2897.8,0.002]
[1769698353792,7.95795011,2899.4,2897.8,0.002]
[1769698353993,7.95795011,2899.2,2897.8,0.002]
[1769698354814,0.86233658,2899.1,2897.8,0.002]
[1769698355503,0.86232464,2899.2,2897.8,0.002]
[1769698356021,0.86218788,2899.6,2897.8,0.002]
[1769698356827,3.44819571,2900.1,2897.9,0.86269367]
[1769698357016,3.44819571,2900.1,2897.9,0.8902002]
[1769698357404,0.86200951,2900.2,2898.2,0.02750653]
[1769698357725,0.86200951,2900.2,2898.4,0.02750653]
[1769698357927,0.86200951,2900.2,2898.2,7.72758329]
[1769698358092,0.86200951,2900.2,2898.4,0.02750653]
[1769698358424,0.51920346,2900.1,2898.5,0.02750653]
[1769698358631,0.51920346,2900.1,2898.5,0.723]
[1769698358825,0.86206896,2900.0,2898.5,1.58551509]
[1769698359029,0.86192035,2900.5,2898.5,1.61302162]
[1769698359229,0.43095128,2900.4,2898.6,0.40622662]
[1769698359631,7.95795011,2900.3,2898.6,0.40622662]
[1769698359977,7.95795011,2900.3,2898.1,0.86261777]
[1769698360098,7.95795011,2900.3,2898.1,3.45044242]
[1769698360299,7.95795011,2900.1,2898.2,0.86259299]
[1769698360495,7.95795011,2899.7,2897.8,0.002]
[1769698360907,7.95795011,2899.5,2897.8,0.002]
[1769698361121,7.95795011,2899.3,2897.8,0.002]
[1769698361311,7.95795011,2899.3,2897.6,0.00192823]
[1769698361714,7.95795011,2898.7,2897.2,0.003]
[1769698362034,7.95795011,2896.8,2895.4,0.0202952]
[1769698362233,7.95795011,2896.8,2894.0,3.45541625]
[1769698362234,0.17982957,2895.6,2894.0,3.45541625]
[1769698362410,0.17982957,2895.6,2894.3,0.02750653]
[1769698362609,0.79579501,2896.7,2895.5,0.02750653]
[1769698362809,0.83524649,2897.6,2895.9,0.02750653]
[1769698363022,0.83524649,2897.6,2896.4,0.02750653]
[1769698363222,7.5890555,2899.2,2896.0,8.56333642]
[1769698363223,7.95795011,2898.8,2896.0,8.56333642]
[1769698363429,7.95795011,2898.8,2896.5,0.02750653]
[1769698363630,1.14076209,2898.7,2896.6,0.02750653]
[1769698363836,1.14076209,2898.7,2896.0,8.56333642]
[1769698364041,7.95795011,2898.7,2896.3,0.02750653]
[1769698364337,7.95795011,2898.7,2896.7,0.02750653]
[1769698364536,7.95795011,2898.7,2896.5,0.02750653]
[1769698364741,7.95795011,2898.7,2897.8,0.002]
[1769698364918,7.95795011,2899.3,2897.2,0.02750653]
[1769698365108,0.88399639,2899.2,2897.1,0.02750653]
[1769698365314,0.88399639,2899.2,2896.9,0.02750653]
[1769698365628,0.88399639,2899.2,2897.4,0.02750653]
[1769698366228,3.4486827,2899.7,2897.2,0.02750653]
[1769698366229,0.86208849,2900.0,2897.9,7.72758329]
[1769698366428,0.86208444,2900.0,2898.1,0.02750653]
[1769698366739,0.86207044,2900.0,2898.5,0.02750653]
[1769698366946,0.91903758,2899.8,2897.7,0.86275321]
[1769698367239,0.43675513,2899.7,2897.7,0.89025974]
[1769698367467,0.43675513,2899.7,2897.7,0.86275321]
[1769698368641,8.39470524,2899.7,2897.7,0.86275321]
[1769698369238,8.39470524,2899.7,2897.4,0.86284254]
[1769698369239,7.95795011,2899.5,2897.4,0.86284254]
[1769698370409,7.95795011,2899.5,2897.5,0.02750653]
[1769698370637,0.86218788,2899.6,2897.7,0.02750653]
[1769698370833,1.34264712,2899.6,2897.7,0.02750653]
[1769698371219,1.34264712,2899.6,2897.8,0.86272344]
[1769698371706,1.34264712,2899.6,2897.8,1.58572344]
[1769698372447,1.34264712,2899.6,2897.8,0.86272344]
[1769698372609,0.05689785,2899.8,2897.9,0.723]
[1769698372810,0.05689785,2899.8,2898.2,7.72758329]
[1769698373033,0.86303985,2900.1,2898.2,7.70007676]
[1769698373231,0.001,2900.1,2898.1,0.86263413]
[1769698373549,7.95895011,2900.1,2898.1,0.86263413]
[1769698373710,9.09866082,2900.0,2898.2,0.43131707]
[1769698374550,1.14071071,2900.0,2898.2,0.43131707]
[1769698374719,0.001,2900.1,2898.5,0.02750653]
[1769698374917,3.44694073,2901.2,2899.1,0.02750653]
[1769698375122,3.44694073,2901.2,2899.3,0.02750653]
[1769698375329,0.86271239,2901.3,2899.4,0.86224736]
[1769698375330,0.001,2901.3,2899.4,0.86224736]
[1769698375532,0.34476495,2901.2,2899.5,0.43387433]
[1769698375843,0.34476495,2901.2,2899.5,0.46138086]
[1769698376057,0.34476495,2901.2,2899.5,0.43387433]
[1769698376726,7.78314333,2901.2,2899.5,0.43387433]
[1769698377042,7.78314333,2901.2,2899.4,0.86224736]
[1769698377241,0.001,2901.0,2899.4,0.86224736]
[1769698377612,7.43937838,2901.0,2898.9,0.86239608]
[1769698377814,7.43937838,2901.0,2898.9,1.61290261]
[1769698378912,7.43937838,2901.0,2899.1,0.02750653]
[1769698379114,0.83011205,2900.9,2898.9,1.61290261]
[1769698379309,0.83011205,2900.9,2898.9,9.42607464]
[1769698379544,0.001,2901.0,2899.1,0.02750653]
[1769698379750,0.001,2901.0,2899.3,0.02750653]
[1769698380155,0.001,2901.0,2899.2,8.67547887]
[1769698380455,0.001,2901.0,2899.3,0.75050653]
[1769698380956,7.43937838,2901.0,2899.1,0.8623306]
[1769698381257,7.43837838,2900.8,2899.1,0.8623306]
[1769698381455,7.43837838,2900.8,2899.1,0.86233609]
[1769698381629,0.86186093,2900.7,2898.8,0.723]
[1769698381824,0.86186093,2900.7,2898.9,0.02750653]
[1769698382222,0.86186093,2900.7,2898.8,0.02750653]
[1769698382426,8.61314668,2900.6,2898.5,0.86251509]
[1769698382638,7.43837838,2900.4,2898.0,3.45064949]
[1769698382879,7.43837838,2899.8,2896.8,7.81317203]
[1769698383039,7.43837838,2899.8,2897.2,0.8628756]
[1769698383040,7.43837838,2899.1,2897.2,0.8628756]
[1769698383241,7.43837838,2898.9,2897.0,3.45179681]
[1769698383576,7.43837838,2899.7,2898.0,0.86266362]
[1769698383799,7.43837838,2899.7,2897.1,3.47915483]
[1769698383800,7.43837838,2899.5,2897.2,0.86290211]
[1769698384092,7.43837838,2899.5,2897.3,0.02750653]
[1769698384277,8.26843501,2899.4,2897.2,0.86290211]
[1769698384446,8.26843501,2899.4,2897.2,1.58590211]
[1769698385174,8.26498501,2899.4,2897.2,0.86290211]
[1769698385375,8.26498501,2899.4,2897.1,0.86292681]
[1769698385560,7.43837838,2899.2,2897.1,0.84594382]
[1769698385874,7.43837838,2899.0,2896.7,0.003]
[1769698386186,0.86233658,2899.1,2896.7,0.003]
[1769698386187,0.2335703,2898.9,2896.7,0.003]
[1769698386484,0.86233658,2899.1,2896.7,0.003]
[1769698386485,7.43837838,2898.4,2896.7,0.003]
[1769698387641,0.86257461,2898.3,2896.7,0.003]
[1769698387840,1.17512514,2898.2,2896.7,0.003]
[1769698388243,8.61350352,2898.2,2896.7,0.003]
[1769698388456,8.61350352,2898.2,2896.0,3.45280022]
[1769698388457,7.43837838,2897.6,2895.1,3.45406931]
[1769698388665,7.43837838,2897.4,2895.2,0.02750653]
[1769698388874,0.77889015,2897.8,2896.1,0.89073301]
[1769698389082,0.86251509,2898.5,2896.5,0.02750653]
[1769698389248,0.86251509,2898.5,2896.9,0.002]
[1769698392946,0.86230684,2899.2,2897.0,0.02750653]
[1769698393141,3.55262737,2899.4,2898.6,0.0172497]
[1769698393142,0.001,2899.4,2898.6,0.0172497]
[1769698393355,0.86327488,2899.4,2898.6,0.0172497]
[1769698393589,0.43121633,2899.3,2898.6,0.0172497]
[1769698394278,0.001,2899.4,2898.6,0.87973314]
[1769698394477,0.001,2899.4,2898.6,0.87972679]
[1769698395242,0.86195007,2900.4,2898.6,0.87972679]
[1769698395447,0.86195007,2900.4,2898.7,0.02750653]
[1769698395659,0.86195007,2900.4,2898.6,0.87972679]
[1769698395660,0.43097504,2900.3,2898.6,0.87972679]
[1769698395857,0.86206896,2900.0,2898.6,0.87973212]
[1769698396459,0.86206896,2900.0,2898.6,0.0172497]
[1769698396661,8.30044734,2900.0,2898.6,0.0172497]
[1769698396889,7.43837838,2899.8,2898.6,0.0172497]
[1769698397953,8.30053653,2899.7,2898.6,0.0172497]
[1769698398580,0.86215815,2899.7,2898.6,0.879728]
[1769698398764,0.86215006,2899.8,2898.6,0.879728]
[1769698399148,3.44804703,2900.2,2898.6,0.879728]
[1769698399365,1.217941,2900.1,2898.7,0.43297494]
[1769698399962,1.217941,2900.1,2898.8,0.86242583]
[1769698400166,3.44750801,2900.7,2898.8,0.88993236]
[1769698400384,3.44750801,2900.7,2898.8,0.86242583]
[1769698400593,0.86183121,2900.8,2898.8,0.88993236]
[1769698400755,8.30020959,2900.8,2898.8,0.86242583]
[1769698400951,8.30020959,2900.8,2898.7,3.88267826]
[1769698400952,8.61313183,2900.7,2898.7,0.86243603]
[1769698402007,7.43837838,2900.5,2898.7,0.86243603]
[1769698402395,7.43837838,2900.3,2898.6,0.0172497]
[1769698403076,0.02850653,2900.5,2898.6,0.0172497]
[1769698403077,0.723,2900.2,2898.6,0.0172497]
[1769698403388,7.43837838,2900.2,2898.6,0.87973209]
[1769698403588,0.74383784,2900.1,2898.6,0.87973209]
[1769698404105,0.86206896,2900.0,2898.6,0.87973209]
[1769698404403,1.60588074,2900.1,2898.6,0.90723862]
[1769698404610,0.8620429,2900.1,2898.6,0.87973209]
[1769698404806,0.8620429,2900.1,2896.9,0.002]
[1769698404807,7.43837838,2899.2,2896.9,0.002]
[1769698404974,7.43837838,2899.2,2897.8,0.86270435]
[1769698405169,7.43837838,2899.2,2897.8,0.86272238]
[1769698405374,0.74658849,2899.1,2897.6,0.86277665]
[1769698405571,0.74658849,2899.1,2897.6,0.86275687]
[1769698405789,0.74658849,2899.1,2897.8,0.86271791]
[1769698405985,8.41347432,2899.1,2897.1,3.4516325]
[1769698406209,8.52925216,2899.0,2896.9,0.725]
[1769698406407,1.2725306,2898.9,2896.9,0.725]
[1769698406579,1.2725306,2898.9,2896.9,7.62030343]
[1769698406775,0.86236633,2899.0,2896.9,7.62030343]
[1769698406981,8.52925216,2899.0,2896.9,0.002]
[1769698407180,8.52925216,2899.0,2896.9,0.725]
[1769698408505,8.52925216,2899.0,2897.0,0.86296168]
[1769698408877,0.86236633,2899.0,2897.0,0.86296168]
[1769698409081,1.71315488,2899.0,2897.1,0.50673149]
[1769698409278,7.66688583,2899.5,2897.1,8.15254145]
[1769698409503,0.86226692,2899.4,2897.6,0.02750653]
[1769698409808,3.44845211,2899.9,2897.6,7.64580996]
[1769698409809,0.86212842,2899.8,2897.6,7.64580996]
[1769698410009,8.52901425,2899.8,2897.7,0.723]
[1769698410177,8.55652078,2899.8,2897.3,0.723]
[1769698410377,7.66688583,2899.5,2897.2,0.723]
[1769698410590,0.86224736,2899.4,2897.3,0.86287232]
[1769698410782,0.86224736,2899.4,2897.3,8.48117575]
[1769698411093,8.52913319,2899.4,2897.3,0.86287232]
[1769698411294,8.86469809,2899.3,2897.4,1.15443616]
[1769698411691,8.86469809,2899.3,2897.4,0.43143616]
[1769698411692,8.89220462,2899.3,2897.4,0.43143616]
[1769698411880,8.89220462,2899.3,2897.3,0.86287232]
[1769698412812,7.60945183,2899.1,2896.9,0.725]
[1769698413110,7.60945183,2898.9,2896.9,0.002]
[1769698413299,7.60945183,2898.7,2896.9,0.002]
[1769698413612,8.37314767,2898.6,2896.9,0.002]
[1769698413980,8.37314767,2898.6,2897.1,0.002]
[1769698414407,0.76369584,2898.6,2897.1,0.002]
[1769698414612,8.4992652,2899.2,2897.1,0.002]
[1769698415788,7.60945183,2899.1,2897.1,0.002]
[1769698417325,0.86242583,2898.8,2897.1,0.002]
[1769698417495,1.1921581,2898.7,2897.1,0.002]
[1769698418396,8.80160993,2898.7,2897.1,0.002]
[1769698419006,0.86233658,2899.1,2897.1,7.54530928]
[1769698419210,0.86218788,2899.6,2897.6,0.02750653]
[1769698419424,8.47163971,2899.6,2897.5,0.86281276]
[1769698421393,8.47163971,2899.6,2897.1,0.002]
[1769698421394,7.60945183,2899.2,2897.1,0.002]
[1769698421596,7.60945183,2898.9,2897.1,0.002]
[1769698421820,8.33245183,2898.9,2897.1,0.002]
[1769698422626,7.60945183,2898.4,2896.9,0.002]
[1769698422813,0.02750653,2897.8,2896.6,0.002]
[1769698423006,7.60945183,2897.7,2896.6,0.002]
[1769698423428,0.86278299,2897.6,2896.6,0.002]
[1769698423607,1.19233668,2897.5,2896.6,0.002]
[1769698424137,8.80178851,2897.5,2895.7,0.005]
[1769698424435,7.63695836,2896.9,2895.7,0.005]
[1769698424608,7.63695836,2896.7,2895.7,0.005]
[1769698424803,8.33245183,2896.7,2895.7,0.005]
[1769698425007,8.44269701,2896.6,2895.7,0.005]
[1769698425429,8.47256248,2896.5,2895.5,0.002]
[1769698425604,8.50006901,2896.5,2895.0,0.35]
[1769698425932,7.63695836,2895.9,2894.3,0.86374998]
[1769698426158,7.63695836,2895.7,2894.1,0.86380966]
[1769698426318,7.63695836,2895.7,2894.0,0.86383648]
[1769698426319,7.63695836,2895.5,2894.0,0.86383648]
[1769698426650,7.63695836,2895.5,2892.9,7.54330928]
[1769698426651,7.60945183,2895.5,2895.4,0.002]
[1769698426852,7.60945183,2895.5,2893.6,3.45586072]
[1769698426853,8.37314767,2895.5,2893.6,3.45586072]
[1769698427057,8.37314767,2895.5,2894.4,0.86371188]
[1769698427219,0.02750653,2895.2,2893.1,7.54330928]
[1769698427405,0.02750653,2895.4,2893.3,3.45616144]
[1769698427406,0.86346837,2895.3,2893.3,3.45616144]
[1769698427610,0.02750653,2895.2,2893.3,3.45616144]
[1769698427806,0.89096382,2895.4,2893.3,3.45616144]
[1769698428010,8.37314767,2895.5,2893.3,3.45616144]
[1769698428329,0.76369584,2895.5,2893.3,11.02697725]
[1769698428638,7.60945183,2895.2,2893.4,0.43085467]
[1769698428814,0.02750653,2895.7,2893.4,0.43085467]
[1769698429014,7.60945183,2895.8,2893.4,8.00167048]
[1769698429215,0.86317025,2896.3,2894.0,0.02750653]
[1769698429445,1.21118108,2896.3,2894.0,0.02750653]
[1769698429653,0.34801083,2896.3,2894.2,7.57081581]
[1769698429941,8.4726272,2896.3,2894.2,0.723]
[1769698430237,0.86308085,2896.6,2894.2,8.29381581]
[1769698430610,0.86308085,2896.6,2894.2,8.26630928]
[1769698430940,0.86308085,2896.6,2894.1,0.8638264]
[1769698430941,3.45139662,2897.4,2894.8,7.54330928]
[1769698431114,8.47227034,2897.5,2895.7,0.02750653]
[1769698431308,0.84722703,2897.4,2895.0,7.54330928]
[1769698431535,0.86287232,2897.3,2895.1,0.86352803]
[1769698431724,8.47232415,2897.3,2895.1,0.86352803]
[1769698432410,7.60945183,2896.8,2895.0,0.86355539]
[1769698432648,7.60945183,2896.6,2894.9,0.86356958]
[1769698432825,8.37314767,2896.5,2894.9,0.86358281]
[1769698433342,8.37314767,2896.5,2894.9,0.86356907]
[1769698433508,8.37314767,2896.5,2894.1,3.45525532]
[1769698433708,8.50009881,2896.4,2894.0,0.86385625]
[1769698433913,7.63695836,2896.2,2894.0,0.86385625]
[1769698434114,8.37314767,2896.1,2894.1,0.43192813]
[1769698434309,7.60945183,2895.9,2894.0,0.86385625]
[1769698435015,0.76369584,2896.1,2894.0,0.86385625]
[1769698435329,7.63695836,2896.2,2894.0,0.86385625]
[1769698435720,0.86322986,2896.1,2893.9,3.45542501]
[1769698436244,8.94457672,2896.1,2893.9,3.45542501]
[1769698436630,0.86322986,2896.1,2893.9,3.45542501]
[1769698436831,0.86322986,2896.1,2894.1,0.02750653]
[1769698437036,0.43161493,2896.0,2894.1,0.35104381]
[1769698437722,0.43161493,2896.0,2894.2,0.86379655]
[1769698437723,0.86328947,2895.9,2894.2,0.86379655]
[1769698437913,1.29487473,2896.0,2894.2,0.89130308]
[1769698438253,1.29487473,2896.0,2894.2,0.86379655]
[1769698438549,9.37622159,2896.0,2894.2,0.86379655]
[1769698438746,8.08134686,2895.8,2894.2,0.86379655]
[1769698439242,8.08134686,2895.8,2894.2,0.86579655]
[1769698439626,0.8633491,2895.7,2894.2,0.002]
[1769698439973,8.94469596,2895.7,2894.2,0.002]
[1769698440120,8.08134686,2895.1,2893.3,0.86404994]
[1769698440315,8.08134686,2894.9,2893.3,0.86404994]
[1769698440510,0.81088534,2895.0,2893.3,0.86404994]
[1769698440714,0.723,2895.2,2893.3,0.86404994]
[1769698440915,8.08134686,2895.3,2893.3,0.86404994]
[1769698441111,8.08134686,2895.0,2893.3,0.86404994]
[1769698441416,8.08134686,2894.8,2893.3,0.86404419]
[1769698441953,3.45399281,2895.3,2893.1,0.02750653]
[1769698442146,1.2398808,2895.2,2893.2,0.02750653]
[1769698442333,1.2398808,2895.2,2893.1,0.80929268]
[1769698442334,8.10885339,2894.9,2893.1,0.80929268]
[1769698442533,8.10885339,2894.9,2892.8,0.002]
[1769698442534,0.02750653,2894.7,2892.8,0.002]
[1769698442846,0.02750653,2894.6,2892.8,0.002]
[1769698443047,0.02750653,2894.8,2892.8,0.002]
[1769698443245,0.02750653,2894.6,2892.8,0.002]
[1769698443626,0.02750653,2894.8,2892.8,0.002]
[1769698443822,1.67453269,2894.7,2892.8,0.002]
[1769698444152,0.02750653,2894.2,2892.8,0.002]
[1769698444350,0.02750653,2894.0,2892.8,0.002]
[1769698444752,0.02750653,2893.8,2892.8,0.002]
[1769698445456,0.02750653,2893.9,2892.8,0.002]
[1769698445639,8.91973873,2893.9,2892.8,0.002]
[1769698445845,0.86391595,2893.8,2892.8,0.002]
[1769698446353,0.02750653,2893.6,2892.8,0.002]
[1769698447152,0.81088534,2893.9,2892.8,0.002]
[1769698447452,0.02750653,2893.9,2892.8,0.002]
[1769698447754,0.89124943,2894.4,2892.8,0.002]
[1769698447956,0.02750653,2894.4,2892.8,0.002]
[1769698448251,0.89125397,2894.4,2892.8,0.002]
[1769698448655,0.86370703,2894.5,2892.8,0.002]
[1769698448856,0.46210003,2894.4,2892.8,0.002]
[1769698449057,0.02750653,2894.2,2892.8,0.002]
[1769698449935,1.29834593,2894.4,2892.8,0.002]
[1769698450632,0.86371983,2894.5,2892.8,0.002]
[1769698451360,0.86369877,2894.6,2892.8,0.002]
[1769698451529,0.8912053,2894.6,2892.8,0.002]
[1769698451730,0.8912053,2894.6,2893.0,0.002]
[1769698451931,0.001,2894.2,2893.0,0.002]
[1769698452362,8.08234686,2894.2,2893.0,0.002]
[1769698452562,0.02750653,2893.9,2893.0,0.002]
[1769698452739,8.88958155,2894.1,2893.0,0.002]
[1769698453977,0.86385625,2894.0,2893.0,0.002]
[1769698454142,0.80823469,2894.1,2893.0,0.002]
[1769698454337,0.86382764,2894.1,2893.0,0.002]
[1769698455836,0.001,2894.2,2893.0,0.002]
[1769698456237,1.2398808,2895.2,2893.0,8.03991374]
[1769698456460,8.08134686,2896.3,2893.5,8.06542027]
[1769698456669,0.86322986,2896.1,2894.1,0.02750653]
[1769698457168,0.86322986,2896.1,2894.3,0.02750653]
[1769698457375,0.86319171,2896.3,2894.5,0.02750653]
[1769698457686,0.86319171,2896.3,2894.6,0.02750653]
[1769698457961,0.86322986,2896.1,2894.4,0.86373687]
[1769698458363,0.86322986,2896.1,2894.5,0.02750653]
[1769698458665,3.45229043,2896.7,2894.7,0.02750653]
[1769698459346,0.86302126,2896.8,2894.9,0.02750653]
[1769698459548,0.43151063,2896.7,2895.0,0.02750653]
[1769698459754,8.9443534,2896.9,2894.9,0.80929268]
[1769698459937,8.9443534,2896.9,2894.3,4.17894748]
[1769698461061,8.9443534,2896.9,2894.4,0.724]
[1769698461474,8.9443534,2896.9,2894.1,0.86379655]
[1769698461475,8.08134686,2896.7,2894.1,0.86379655]
[1769698461679,8.08134686,2896.5,2894.1,0.86379655]
[1769698461881,8.10885339,2896.3,2894.2,0.86379655]
[1769698462079,8.08134686,2896.1,2894.2,1.29569749]
[1769698464284,0.86325966,2896.0,2894.2,1.29569749]
[1769698465861,8.47525085,2896.0,2894.2,1.29569749]
[1769698466488,0.86325966,2896.0,2894.3,0.02750653]
[1769698466695,0.86317025,2896.3,2894.4,7.61555304]
[1769698466995,0.86317025,2896.3,2894.6,7.61555304]
[1769698467199,0.86317025,2896.3,2894.8,0.02750653]
[1769698467502,0.001,2896.5,2894.8,0.75328466]
[1769698467789,0.001,2896.5,2895.3,0.02750653]
[1769698467990,0.001,2896.5,2895.3,0.75150653]
[1769698468494,0.001,2896.5,2895.4,0.89094508]
[1769698468795,0.001,2896.5,2895.4,0.86343855]
[1769698468961,0.001,2897.2,2895.5,0.43190094]
[1769698469291,0.001,2897.2,2895.5,0.45940747]
[1769698469499,0.001,2897.2,2895.5,0.43190094]
[1769698469663,0.001,2897.2,2895.6,0.724]
[1769698470060,0.001,2897.2,2895.5,0.43190094]
[1769698470296,0.001,2897.2,2895.6,0.724]
[1769698470499,0.001,2897.2,2895.7,0.89085563]
[1769698470696,0.001,2897.2,2896.1,0.02750653]
[1769698471004,7.61199119,2898.3,2895.9,0.02750653]
[1769698471005,7.61199119,2898.3,2896.2,0.02750653]
[1769698471178,0.86260437,2898.2,2896.4,0.02750653]
[1769698472192,0.86260437,2898.2,2896.2,0.02750653]
[1769698472396,0.86242583,2898.8,2896.5,0.86311065]
[1769698472567,1.21049111,2898.7,2896.6,0.43430598]
[1769698473366,1.21049111,2898.7,2896.6,0.46181251]
[1769698473599,1.21049111,2898.7,2896.8,0.02750653]
[1769698473771,0.86242583,2898.8,2896.7,0.02750653]
[1769698473969,9.02158591,2898.8,2896.6,0.43430598]
[1769698474169,9.02158591,2898.8,2896.7,0.75150653]
[1769698474367,3.45070332,2898.9,2896.7,0.75150653]
[1769698474368,0.001,2898.9,2897.2,0.86290211]
[1769698474689,0.001,2898.9,2897.3,0.43420171]
[1769698475273,0.001,2898.9,2897.6,0.02750653]